fUSD/lending_fUSD_20250412
["ID","MTS","AMOUNT","RATE_DAILY","PERIOD"]
[357744507,1744423847152,-515.6598883,0.00019178,2]
[357744508,1744423847159,-500.0,0.00019178,2]
[357744509,1744423847165,-500.0,0.00019178,2]
[357744510,1744423847172,-500.0,0.00019178,2]
[357744511,1744423847180,-500.0,0.00019178,2]
[357744512,1744423847188,-6786.77,0.00019178,2]
[357744513,1744423847198,-512.9429536,0.00019178,2]
[357744514,1744423847208,-500.0,0.00019178,2]
[357744515,1744423847217,-500.0,0.00019178,2]
[357744516,1744423847227,-1247.87,0.00019178,2]
[357744517,1744423847236,-509.66894379,0.00019178,2]
[357744518,1744423847246,-419.83344263,0.00019178,2]
[357744519,1744423847255,-568.96,0.00019178,2]
[357744520,1744423847264,-500.0,0.00019178,2]
[357744521,1744423847273,-599.50423383,0.00019178,2]
[357744522,1744423847283,-524.5269901,0.00019178,2]
[357744523,1744423847292,-500.0,0.00019178,2]
[357744524,1744423847302,-500.0,0.00019178,2]
[357744525,1744423847311,-500.0,0.00019178,2]
[357744526,1744423847323,-1094.04,0.00019178,2]
[357744527,1744423847334,-500.0,0.00019178,2]
[357744528,1744423847343,-500.0,0.00019178,2]
[357744529,1744423847353,-500.0,0.00019178,2]
[357744530,1744423847363,-500.0,0.00019178,2]
[357744531,1744423847373,-3554.04,0.00019178,2]
[357744532,1744423847383,-500.0,0.00019178,2]
[357744533,1744423847392,-500.0,0.00019178,2]
[357744534,1744423847402,-518.32,0.00019178,2]
[357744535,1744423847412,-500.0,0.00019178,2]
[357744536,1744423847422,-500.0,0.00019178,2]
[357744537,1744423847431,-368.26917062,0.00019178,2]
[357744538,1744423847441,-1184.47,0.00019178,2]
[357744539,1744423847451,-500.0,0.00019178,2]
[357744540,1744423847460,-500.0,0.00019178,2]
[357744541,1744423847470,-500.0,0.00019178,2]
[357744542,1744423847480,-500.0,0.00019178,2]
[357744543,1744423847490,-500.0,0.00019178,2]
[357744544,1744423847500,-520.87436194,0.00019178,2]
[357744545,1744423847510,-1519.45,0.00019178,2]
[357744546,1744423847521,-529.79069415,0.00019178,2]
[357744547,1744423847531,-500.0,0.00019178,2]
[357744548,1744423847542,-500.0,0.00019178,2]
[357744549,1744423847551,-1702.13,0.00019178,2]
[357744550,1744423847560,-500.0,0.00019178,2]
[357744551,1744423847571,-500.0,0.00019178,2]
[357744552,1744423847581,-500.0,0.00019178,2]
[357744553,1744423847591,-500.0,0.00019178,2]
[357744554,1744423847601,-500.0,0.00019178,2]
[357744555,1744423847611,-500.0,0.00019178,2]
[357744556,1744423847620,-500.0,0.00019178,2]
[357744557,1744423847631,-500.0,0.00019178,2]
[357744558,1744423847640,-500.0,0.00019178,2]
[357744559,1744423847650,-6877.37,0.00019178,2]
[357744560,1744423847660,-235.117517,0.00019178,2]
[357744561,1744423847669,-554.73552988,0.00019178,2]
[357744562,1744423847679,-500.0,0.00019178,2]
[357744563,1744423847688,-500.0,0.00019178,2]
[357744564,1744423847699,-1094.34,0.00019178,2]
[357744565,1744423847709,-500.0,0.00019178,2]
[357744566,1744423847718,-500.0,0.00019178,2]
[357744567,1744423847728,-509.85737076,0.00019178,2]
[357744568,1744423847737,-500.0,0.00019178,2]
[357744569,1744423847747,-500.0,0.00019178,2]
[357744570,1744423847756,-500.0,0.00019178,2]
[357744571,1744423847765,-500.0,0.00019178,2]
[357744572,1744423847775,-500.0,0.00019178,2]
[357744573,1744423847784,-500.0,0.00019178,2]
[357744574,1744423847794,-523.9956189,0.00019178,2]
[357744575,1744423847803,-500.0,0.00019178,2]
[357744576,1744423847812,-500.0,0.00019178,2]
[357744577,1744423847821,-2775.3,0.00019178,2]
[357744578,1744423847831,-500.0,0.00019178,2]
[357744579,1744423847840,-500.0,0.00019178,2]
[357744580,1744423847850,-500.0,0.00019178,2]
[357744581,1744423847859,-500.0,0.00019178,2]
[357744582,1744423847868,-500.0,0.00019178,2]
[357744583,1744423847877,-500.0,0.00019178,2]
[357744584,1744423847887,-500.0,0.00019178,2]
[357744585,1744423847896,-500.0,0.00019178,2]
[357744586,1744423847905,-529.64489727,0.00019178,2]
[357744587,1744423847915,-838.21,0.00019178,2]
[357744588,1744423847924,-500.0,0.00019178,2]
[357744589,1744423847933,-500.0,0.00019178,2]
[357744590,1744423847942,-500.0,0.00019178,2]
[357744591,1744423847952,-1101.91,0.00019178,2]
[357744592,1744423847961,-511.79352759,0.00019178,2]
[357744593,1744423847970,-500.0,0.00019178,2]
[357744594,1744423847979,-1038.6,0.00019178,2]
[357744595,1744423847989,-500.0,0.00019178,2]
[357744596,1744423847998,-500.0,0.00019178,2]
[357744597,1744423848007,-302.96411681,0.00019178,2]
[357744598,1744423848016,-500.0,0.00019178,2]
[357744599,1744423848025,-523.40130788,0.00019178,2]
[357744600,1744423848034,-500.0,0.00019178,2]
[357744601,1744423848043,-500.0,0.00019178,2]
[357744602,1744423848053,-500.0,0.00019178,2]
[357744603,1744423848062,-500.0,0.00019178,2]
[357744604,1744423848071,-500.0,0.00019178,2]
[357744605,1744423848081,-2940.92,0.00019178,2]
[357744606,1744423848094,-500.0,0.00019178,2]
[357744607,1744423848103,-500.0,0.00019178,2]
[357744608,1744423848112,-500.0,0.00019178,2]
[357744609,1744423848122,-23854.78,0.00019178,2]
[357744610,1744423848131,-500.0,0.00019178,2]
[357744611,1744423848140,-500.0,0.00019178,2]
[357744612,1744423848149,-500.0,0.00019178,2]
[357744613,1744423848159,-500.0,0.00019178,2]
[357744614,1744423848169,-1151.37,0.00019178,2]
[357744615,1744423848179,-500.0,0.00019178,2]
[357744616,1744423848188,-500.0,0.00019178,2]
[357744617,1744423848197,-500.0,0.00019178,2]
[357744618,1744423848207,-500.0,0.00019178,2]
[357744619,1744423848216,-500.0,0.00019178,2]
[357744620,1744423848225,-500.0,0.00019178,2]
[357744621,1744423848236,-500.0,0.00019178,2]
[357744622,1744423848245,-520.8972795,0.00019178,2]
[357744623,1744423848255,-500.0,0.00019178,2]
[357744624,1744423848264,-500.0,0.00019178,2]
[357744625,1744423848273,-364.25608288,0.00019178,2]
[357744626,1744423848283,-519.08684735,0.00019178,2]
[357744627,1744423848292,-500.0,0.00019178,2]
[357744628,1744423848301,-500.0,0.00019178,2]
[357744629,1744423848311,-500.0,0.00019178,2]
[357744630,1744423848321,-500.0,0.00019178,2]
[357744631,1744423848333,-500.0,0.00019178,2]
[357744632,1744423848342,-500.0,0.00019178,2]
[357744633,1744423848352,-500.0,0.00019178,2]
[357744634,1744423848361,-500.0,0.00019178,2]
[357744635,1744423848372,-500.0,0.00019178,2]
[357744636,1744423848381,-1116.37,0.00019178,2]
[357744637,1744423848391,-31030.86,0.00019178,2]
[357744638,1744423848402,-572.64,0.00019178,2]
[357744639,1744423848411,-500.0,0.00019178,2]
[357744640,1744423848421,-500.0,0.00019178,2]
[357744641,1744423848430,-509.04406405,0.00019178,2]
[357744642,1744423848440,-500.0,0.00019178,2]
[357744643,1744423848449,-1860.5,0.00019178,2]
[357744644,1744423848459,-500.0,0.00019178,2]
[357744645,1744423848469,-500.0,0.00019178,2]
[357744646,1744423848479,-500.0,0.00019178,2]
[357744647,1744423848489,-500.0,0.00019178,2]
[357744648,1744423848499,-500.0,0.00019178,2]
[357744649,1744423848508,-500.0,0.00019178,2]
[357744650,1744423848517,-500.0,0.00019178,2]
[357744651,1744423848527,-500.0,0.00019178,2]
[357744652,1744423848537,-500.0,0.00019178,2]
[357744653,1744423848547,-500.0,0.00019178,2]
[357744654,1744423848556,-500.0,0.00019178,2]
[357744655,1744423848566,-500.0,0.00019178,2]
[357744656,1744423848576,-500.0,0.00019178,2]
[357744657,1744423848585,-508.37,0.00019178,2]
[357744658,1744423848595,-500.0,0.00019178,2]
[357744659,1744423848605,-706.04,0.00019178,2]
[357744660,1744423848614,-500.0,0.00019178,2]
[357744661,1744423848624,-500.0,0.00019178,2]
[357744662,1744423848634,-500.0,0.00019178,2]
[357744663,1744423848644,-500.0,0.00019178,2]
[357744664,1744423848653,-500.0,0.00019178,2]
[357744665,1744423848664,-500.0,0.00019178,2]
[357744666,1744423848674,-500.0,0.00019178,2]
[357744667,1744423848683,-500.0,0.00019178,2]
[357744668,1744423848693,-1131.78,0.00019178,2]
[357744669,1744423848703,-500.0,0.00019178,2]
[357744670,1744423848713,-500.0,0.00019178,2]
[357744671,1744423848723,-530.81721471,0.00019178,2]
[357744672,1744423848733,-500.0,0.00019178,2]
[357744673,1744423848743,-822.95,0.00019178,2]
[357744674,1744423848753,-500.0,0.00019178,2]
[357744675,1744423848763,-1264.47,0.00019178,2]
[357744676,1744423848772,-500.0,0.00019178,2]
[357744677,1744423848782,-500.0,0.00019178,2]
[357744678,1744423848792,-500.0,0.00019178,2]
[357744679,1744423848803,-500.0,0.00019178,2]
[357744680,1744423848818,-500.0,0.00019178,2]
[357744681,1744423848828,-836.24,0.00019178,2]
[357744682,1744423848838,-508.94179158,0.00019178,2]
[357744683,1744423848848,-500.0,0.00019178,2]
[357744684,1744423848858,-500.0,0.00019178,2]
[357744685,1744423848868,-500.0,0.00019178,2]
[357744686,1744423848877,-853.58,0.00019178,2]
[357744687,1744423848887,-508.20146525,0.00019178,2]
[357744688,1744423848897,-2517.84,0.00019178,2]
[357744689,1744423848906,-500.0,0.00019178,2]
[357744690,1744423848916,-500.0,0.00019178,2]
[357744691,1744423848926,-501.37421848,0.00019178,2]
[357744692,1744423848935,-500.0,0.00019178,2]
[357744693,1744423848945,-517.32585688,0.00019178,2]
[357744694,1744423848954,-500.0,0.00019178,2]
[357744695,1744423848964,-1457.11,0.00019178,2]
[357744696,1744423848974,-500.0,0.00019178,2]
[357744697,1744423848984,-500.0,0.00019178,2]
[357744698,1744423848994,-500.0,0.00019178,2]
[357744699,1744423849004,-500.0,0.00019178,2]
[357744700,1744423849013,-157.14176248,0.00019178,2]
[357744701,1744423849023,-500.0,0.00019178,2]
[357744702,1744423849033,-500.0,0.00019178,2]
[357744703,1744423849043,-808.42,0.00019178,2]
[357744704,1744423849052,-500.0,0.00019178,2]
[357744705,1744423849062,-500.0,0.00019178,2]
[357744706,1744423849071,-500.0,0.00019178,2]
[357744707,1744423849080,-541.29,0.00019178,2]
[357744708,1744423849091,-616.93,0.00019178,2]
[357744709,1744423849100,-2561.07,0.00019178,2]
[357744710,1744423849110,-500.0,0.00019178,2]
[357744711,1744423849119,-500.0,0.00019178,2]
[357744712,1744423849129,-2107.95,0.00019178,2]
[357744713,1744423849139,-500.0,0.00019178,2]
[357744714,1744423849148,-500.0,0.00019178,2]
[357744715,1744423849158,-3016.89,0.00019178,2]
[357744716,1744423849168,-500.0,0.00019178,2]
[357744717,1744423849178,-500.0,0.00019178,2]
[357744718,1744423849187,-1070.35,0.00019178,2]
[357744719,1744423849197,-500.0,0.00019178,2]
[357744720,1744423849207,-540.81,0.00019178,2]
[357744721,1744423849217,-502.394943,0.00019178,2]
[357744722,1744423849227,-500.0,0.00019178,2]
[357744723,1744423849236,-500.0,0.00019178,2]
[357744724,1744423849246,-500.0,0.00019178,2]
[357744725,1744423849256,-500.0,0.00019178,2]
[357744726,1744423849265,-1935.8,0.00019178,2]
[357744727,1744423849275,-500.0,0.00019178,2]
[357744728,1744423849285,-513.94730087,0.00019178,2]
[357744729,1744423849295,-1933.46,0.00019178,2]
[357744730,1744423849305,-500.0,0.00019178,2]
[357744731,1744423849314,-515.83874619,0.00019178,2]
[357744732,1744423849327,-999.64,0.00019178,2]
[357744733,1744423849337,-537.81784705,0.00019178,2]
[357744734,1744423849347,-500.0,0.00019178,2]
[357744735,1744423849357,-2026.22,0.00019178,2]
[357744736,1744423849367,-500.0,0.00019178,2]
[357744737,1744423849376,-2625.2,0.00019178,2]
[357744738,1744423849386,-500.0,0.00019178,2]
[357744739,1744423849396,-543.69179147,0.00019178,2]
[357744740,1744423849407,-500.0,0.00019178,2]
[357744741,1744423849417,-500.0,0.00019178,2]
[357744742,1744423849427,-500.0,0.00019178,2]
[357744743,1744423849436,-688.77,0.00019178,2]
[357744744,1744423849447,-500.0,0.00019178,2]
[357744745,1744423849457,-1349.89,0.00019178,2]
[357744746,1744423849467,-500.0,0.00019178,2]
[357744747,1744423849476,-523.95109706,0.00019178,2]
[357744748,1744423849486,-1725.85,0.00019178,2]
[357744749,1744423849497,-500.0,0.00019178,2]
[357744750,1744423849508,-500.0,0.00019178,2]
[357744751,1744423849517,-741.2,0.00019178,2]
[357744752,1744423849527,-500.0,0.00019178,2]
[357744753,1744423849537,-500.0,0.00019178,2]
[357744754,1744423849547,-2372.14,0.00019178,2]
[357744755,1744423849557,-512.71290943,0.00019178,2]
[357744756,1744423849567,-500.0,0.00019178,2]
[357744757,1744423849577,-500.0,0.00019178,2]
[357744758,1744423849587,-588.58646525,0.00019178,2]
[357744759,1744423849596,-500.0,0.00019178,2]
[357744760,1744423849606,-500.0,0.00019178,2]
[357744761,1744423849616,-1050.33,0.00019178,2]
[357744762,1744423849625,-500.0,0.00019178,2]
[357744763,1744423849635,-500.0,0.00019178,2]
[357744764,1744423849644,-500.0,0.00019178,2]
[357744765,1744423849654,-500.0,0.00019178,2]
[357744766,1744423849663,-500.0,0.00019178,2]
[357744767,1744423849673,-500.0,0.00019178,2]
[357744768,1744423849683,-508.83,0.00019178,2]
[357744769,1744423849847,-500.0,0.00019178,2]
[357744770,1744423849856,-1160.79,0.00019178,2]
[357744771,1744423849865,-1319.0,0.00019178,2]
[357744772,1744423849874,-500.0,0.00019178,2]
[357744773,1744423849883,-508.64613427,0.00019178,2]
[357744774,1744423849892,-503.36967529,0.00019178,2]
[357744775,1744423849902,-500.0,0.00019178,2]
[357744776,1744423849911,-518.33790689,0.00019178,2]
[357744777,1744423849920,-500.0,0.00019178,2]
[357744778,1744423849929,-1359.59,0.00019178,2]
[357744779,1744423849938,-500.0,0.00019178,2]
[357744780,1744423849947,-500.0,0.00019178,2]
[357744781,1744423849957,-516.73179999,0.00019178,2]
[357744782,1744423849966,-500.0,0.00019178,2]
[357744783,1744423849976,-500.0,0.00019178,2]
[357744784,1744423849986,-1753.92,0.00019178,2]
[357744785,1744423849996,-500.0,0.00019178,2]
[357744786,1744423850006,-500.0,0.00019178,2]
[357744787,1744423850016,-500.0,0.00019178,2]
[357744788,1744423850026,-886.85,0.00019178,2]
[357744789,1744423850036,-500.0,0.00019178,2]
[357744790,1744423850045,-193.78464101,0.00019178,2]
[357744791,1744423850054,-4414.58,0.00019178,2]
[357744792,1744423850063,-512.23325491,0.00019178,2]
[357744793,1744423850073,-500.0,0.00019178,2]
[357744794,1744423850082,-500.0,0.00019178,2]
[357744795,1744423850092,-500.0,0.00019178,2]
[357744796,1744423850101,-500.0,0.00019178,2]
[357744797,1744423850116,-500.0,0.00019178,2]
[357744798,1744423850125,-500.0,0.00019178,2]
[357744799,1744423850135,-1263.87,0.00019178,2]
[357744800,1744423850144,-516.82249699,0.00019178,2]
[357744801,1744423850154,-500.0,0.00019178,2]
[357744802,1744423850164,-1305.33,0.00019178,2]
[357744803,1744423850174,-2546.21,0.00019178,2]
[357744804,1744423850184,-500.0,0.00019178,2]
[357744805,1744423850193,-500.0,0.00019178,2]
[357744806,1744423850203,-500.0,0.00019178,2]
[357744807,1744423850212,-500.0,0.00019178,2]
[357744808,1744423850222,-514.49132453,0.00019178,2]
[357744809,1744423850231,-944.0,0.00019178,2]
[357744810,1744423850240,-726.39,0.00019178,2]
[357744811,1744423850249,-523.74012728,0.00019178,2]
[357744812,1744423850259,-2051.03,0.00019178,2]
[357744813,1744423850268,-500.0,0.00019178,2]
[357744814,1744423850277,-9446.92,0.00019178,2]
[357744815,1744423850287,-500.0,0.00019178,2]
[357744816,1744423850295,-500.0,0.00019178,2]
[357744817,1744423850304,-1154.82,0.00019178,2]
[357744818,1744423850314,-1287.29,0.00019178,2]
[357744819,1744423850327,-500.0,0.00019178,2]
[357744820,1744423850336,-500.0,0.00019178,2]
[357744821,1744423850345,-4347.33,0.00019178,2]
[357744822,1744423850355,-285.08756152,0.00019178,2]
[357744823,1744423850364,-500.0,0.00019178,2]
[357744824,1744423850374,-500.0,0.00019178,2]
[357744825,1744423850383,-500.0,0.00019178,2]
[357744826,1744423850392,-506.98276921,0.00019178,2]
[357744827,1744423850402,-500.0,0.00019178,2]
[357744828,1744423850412,-500.0,0.00019178,2]
[357744829,1744423850422,-500.0,0.00019178,2]
[357744830,1744423850431,-500.0,0.00019178,2]
[357744831,1744423850440,-509.31207838,0.00019178,2]
[357744832,1744423850449,-500.0,0.00019178,2]
[357744833,1744423850459,-1259.74,0.00019178,2]
[357744834,1744423850468,-2055.22,0.00019178,2]
[357744835,1744423850477,-975.13,0.00019178,2]
[357744836,1744423850486,-505.45259493,0.00019178,2]
[357744837,1744423850495,-598.98782872,0.00019178,2]
[357744838,1744423850504,-500.0,0.00019178,2]
[357744839,1744423850514,-975.71,0.00019178,2]
[357744840,1744423850523,-500.0,0.00019178,2]
[357744841,1744423850531,-218.6533926,0.00019178,2]
[357744842,1744423850541,-500.0,0.00019178,2]
[357744843,1744423850550,-500.0,0.00019178,2]
[357744844,1744423850559,-1301.59,0.00019178,2]
[357744845,1744423850568,-500.0,0.00019178,2]
[357744846,1744423850578,-1560.0,0.00019178,2]
[357744847,1744423850587,-1400.37,0.00019178,2]
[357744848,1744423850596,-500.0,0.00019178,2]
[357744849,1744423850606,-513.68563799,0.00019178,2]
[357744850,1744423850615,-500.0,0.00019178,2]
[357744851,1744423850625,-500.0,0.00019178,2]
[357744852,1744423850634,-500.0,0.00019178,2]
[357744853,1744423850643,-500.0,0.00019178,2]
[357744854,1744423850653,-1993.1,0.00019178,2]
[357744855,1744423850662,-500.0,0.00019178,2]
[357744856,1744423850672,-500.0,0.00019178,2]
[357744857,1744423850682,-635.63,0.00019178,2]
[357744858,1744423850691,-500.0,0.00019178,2]
[357744859,1744423850700,-526.18316264,0.00019178,2]
[357744860,1744423850711,-503.98281266,0.00019178,2]
[357744861,1744423850720,-511.2445256,0.00019178,2]
[357744862,1744423850729,-500.0,0.00019178,2]
[357744863,1744423850739,-515.42883016,0.00019178,2]
[357744864,1744423850749,-500.0,0.00019178,2]
[357744865,1744423850758,-219.84057569,0.00019178,2]
[357744866,1744423850768,-500.0,0.00019178,2]
[357744867,1744423850777,-507.97156646,0.00019178,2]
[357744868,1744423850786,-500.0,0.00019178,2]
[357744869,1744423850795,-500.0,0.00019178,2]
[357744870,1744423850804,-500.0,0.00019178,2]
[357744871,1744423850814,-500.0,0.00019178,2]
[357744872,1744423850823,-508.99220822,0.00019178,2]
[357744873,1744423850832,-1253.22,0.00019178,2]
[357744874,1744423850842,-500.0,0.00019178,2]
[357744875,1744423850851,-963.48,0.00019178,2]
[357744876,1744423850861,-500.0,0.00019178,2]
[357744877,1744423850870,-500.0,0.00019178,2]
[357744878,1744423850879,-1546.9,0.00019178,2]
[357744879,1744423850889,-1801.62,0.00019178,2]
[357744880,1744423850898,-500.0,0.00019178,2]
[357744881,1744423850908,-502.97614007,0.00019178,2]
[357744882,1744423850917,-500.0,0.00019178,2]
[357744883,1744423850926,-2134.43,0.00019178,2]
[357744884,1744423850936,-524.01618402,0.00019178,2]
[357744885,1744423850945,-1029.75,0.00019178,2]
[357744886,1744423850955,-500.0,0.00019178,2]
[357744887,1744423850965,-500.0,0.00019178,2]
[357744888,1744423850974,-267.93055628,0.00019178,2]
[357744889,1744423850984,-500.0,0.00019178,2]
[357744890,1744423850993,-405.41209502,0.00019178,2]
[357744891,1744423851002,-553.34601805,0.00019178,2]
[357744892,1744423851011,-286.69846531,0.00019178,2]
[357744893,1744423851021,-500.0,0.00019178,2]
[357744894,1744423851030,-4879.22,0.00019178,2]
[357744895,1744423851039,-500.0,0.00019178,2]
[357744896,1744423851048,-500.0,0.00019178,2]
[357744897,1744423851058,-2016.67,0.00019178,2]
[357744898,1744423851067,-1502.0,0.00019178,2]
[357744899,1744423851076,-509.64411217,0.00019178,2]
[357744900,1744423851085,-499.20210043,0.00019178,2]
[357744901,1744423851094,-500.0,0.00019178,2]
[357744902,1744423851104,-1005.96,0.00019178,2]
[357744903,1744423851113,-500.0,0.00019178,2]
[357744904,1744423851122,-7465.01,0.00019178,2]
[357744905,1744423851132,-569.43,0.00019178,2]
[357744906,1744423851141,-500.0,0.00019178,2]
[357744907,1744423851151,-500.0,0.00019178,2]
[357744908,1744423851161,-500.0,0.00019178,2]
[357744909,1744423851170,-500.0,0.00019178,2]
[357744910,1744423851179,-500.0,0.00019178,2]
[357744911,1744423851188,-529.75489507,0.00019178,2]
[357744912,1744423851197,-1672.51,0.00019178,2]
[357744913,1744423851206,-1772.64,0.00019178,2]
[357744914,1744423851215,-500.0,0.00019178,2]
[357744915,1744423851224,-500.0,0.00019178,2]
[357744916,1744423851233,-500.0,0.00019178,2]
[357744917,1744423851243,-500.0,0.00019178,2]
[357744918,1744423851252,-500.0,0.00019178,2]
[357744919,1744423851262,-643.95,0.00019178,2]
[357744920,1744423851272,-1588.45,0.00019178,2]
[357744921,1744423851281,-612.41,0.00019178,2]
[357744922,1744423851290,-500.0,0.00019178,2]
[357744923,1744423851299,-1374.03,0.00019178,2]
[357744924,1744423851308,-1273.82,0.00019178,2]
[357744925,1744423851318,-504.24209409,0.00019178,2]
[357744926,1744423851331,-500.0,0.00019178,2]
[357744927,1744423851340,-235.07299166,0.00019178,2]
[357744928,1744423851350,-558.3148856,0.00019178,2]
[357744929,1744423851359,-573.56,0.00019178,2]
[357744930,1744423851368,-500.0,0.00019178,2]
[357744931,1744423851377,-501.16139025,0.00019178,2]
[357744932,1744423851387,-500.0,0.00019178,2]
[357744933,1744423851399,-501.9,0.00019178,2]
[357744934,1744423851409,-2002.62,0.00019178,2]
[357744935,1744423851418,-538.87,0.00019178,2]
[357744936,1744423851427,-500.0,0.00019178,2]
[357744937,1744423851436,-500.0,0.00019178,2]
[357744938,1744423851445,-500.0,0.00019178,2]
[357744939,1744423851455,-1713.55,0.00019178,2]
[357744940,1744423851466,-500.0,0.00019178,2]
[357744941,1744423851475,-510.01781514,0.00019178,2]
[357744942,1744423851486,-343.54254371,0.00019178,2]
[357744943,1744423851496,-16785.86,0.00019208,2]
[357744944,1744423851505,-690.76,0.00019253,2]
[357744945,1744423851514,-250.0,0.00019265,2]
[357744946,1744423851523,-1000.0,0.00019337,2]
[357744947,1744423851532,-197.50715291,0.00019352,2]
[357744948,1744423851542,-165.77774291,0.00019352,2]
[357744949,1744423851551,-166.66,0.0001939,2]
[357744950,1744423851560,-185.6,0.00019404,2]
[357744951,1744423851571,-250.0,0.00019405,2]
[357744952,1744423851580,-500.0,0.00019451,2]
[357744953,1744423851589,-500.0,0.00019451,2]
[357744954,1744423851599,-500.0,0.00019451,2]
[357744955,1744423851609,-500.0,0.00019452,2]
[357744956,1744423851619,-500.0,0.00019452,2]
[357744957,1744423851628,-726.4,0.00019452,2]
[357744958,1744423851638,-500.0,0.00019452,2]
[357744959,1744423851648,-505.47638454,0.00019452,2]
[357744960,1744423851657,-529.57403713,0.00019452,2]
[357744961,1744423851666,-500.0,0.00019452,2]
[357744962,1744423851675,-500.0,0.00019452,2]
[357744963,1744423851684,-500.0,0.00019452,2]
[357744964,1744423851694,-500.0,0.00019452,2]
[357744965,1744423851703,-500.0,0.00019452,2]
[357744966,1744423851712,-500.0,0.00019452,2]
[357744967,1744423851723,-500.0,0.00019452,2]
[357744968,1744423851732,-500.0,0.00019452,2]
[357744969,1744423851741,-500.0,0.00019452,2]
[357744970,1744423851751,-1227.71,0.00019452,2]
[357744971,1744423851761,-579.11,0.00019452,2]
[357744972,1744423851771,-2006.29983534,0.00019452,2]
[357744973,1744423851780,-509.17553077,0.00019452,2]
[357744974,1744423851789,-500.0,0.00019452,2]
[357744975,1744423851798,-500.0,0.00019452,2]
[357744976,1744423851808,-500.0,0.00019452,2]
[357744977,1744423851817,-500.0,0.00019452,2]
[357744978,1744423851826,-500.0,0.00019452,2]
[357744979,1744423851835,-500.0,0.00019452,2]
[357744980,1744423851844,-500.0,0.00019452,2]
[357744981,1744423851853,-500.0,0.00019452,2]
[357744982,1744423851862,-500.0,0.00019452,2]
[357744983,1744423851871,-593.97085397,0.00019452,2]
[357744984,1744423851880,-500.0,0.00019452,2]
[357744985,1744423851889,-500.0,0.00019452,2]
[357744986,1744423851899,-500.0,0.00019452,2]
[357744987,1744423851908,-515.09,0.00019452,2]
[357744988,1744423851917,-332.85788658,0.00019452,2]
[357744989,1744423851926,-521.76999758,0.00019452,2]
[357744990,1744423851936,-500.0,0.00019452,2]
[357744991,1744423851945,-523.48,0.00019452,2]
[357744992,1744423851954,-612.96,0.00019452,2]
[357744993,1744423851963,-500.0,0.00019452,2]
[357744994,1744423851972,-500.0,0.00019452,2]
[357744995,1744423851981,-327.25964856,0.00019452,2]
[357744996,1744423851990,-500.0,0.00019452,2]
[357744997,1744423851999,-514.22343066,0.00019452,2]
[357744998,1744423852008,-1392.81,0.00019452,2]
[357744999,1744423852017,-519.4828822,0.00019452,2]
[357745000,1744423852026,-563.9953371,0.00019452,2]
[357745001,1744423852035,-500.0,0.00019452,2]
[357745002,1744423852045,-500.0,0.00019452,2]
[357745003,1744423852054,-519.05799854,0.00019452,2]
[357745004,1744423852063,-500.0,0.00019452,2]
[357745005,1744423852072,-500.0,0.00019452,2]
[357745006,1744423852081,-500.0,0.00019452,2]